bitfinex-derivatives/quotes_SOLF0:USTF0_20241226
["timestamp","ask_amount","ask_price","bid_price","bid_amount"]
[1735207649082,3.26,189.26,189.2,12.07002092]
[1735207649577,2.6447,189.25,189.21,2.6452]
[1735207650178,3.26,189.26,189.22,2.645]
[1735207650376,3.26,189.26,189.15,44.87142385]
[1735207650575,1.5725,189.25,189.16,12.07002092]
[1735207650773,0.88492111,189.24,189.16,12.07002092]
[1735207650979,2.46902111,189.24,189.16,12.07002092]
[1735207651185,1.5841,189.24,189.16,12.07002092]
[1735207652688,0.88483774,189.23,189.16,12.07002092]
[1735207653084,2.6453,189.21,189.16,14.71592092]
[1735207653280,3.26,189.2,189.16,12.07002092]
[1735207654587,3.26,189.2,189.17,2.6458]
[1735207654993,3.26,189.2,189.16,14.71592092]
[1735207658293,3.26,189.2,189.17,7.73455399]
[1735207658687,1.5841,189.24,189.19,7.73455399]
[1735207658892,3.26,189.24,189.23,7.73455399]
[1735207659483,3.26,189.24,189.1,3.26]
[1735207659686,3.26,189.24,189.23,7.73455399]
[1735207663392,3.26,189.24,189.09,44.75371663]
[1735207663592,2.6452,189.22,189.19,7.73455399]
[1735207669595,5.9049,189.24,189.2,2.6453]
[1735207672396,7.73455399,189.22,189.14,2.6461]
[1735207672594,7.73455399,189.22,189.15,7.73455399]
[1735207673403,2.6453,189.21,189.17,2.6458]
[1735207673592,2.6453,189.21,189.17,10.38035399]
[1735207674202,10.99455399,189.24,189.17,7.73455399]
[1735207674501,2.6454,189.2,189.17,7.73455399]
[1735207674696,3.26,189.19,189.17,7.73455399]
[1735207675092,3.26,189.19,189.17,10.38035399]
[1735207675503,3.26,189.19,189.17,7.73455399]
[1735207676709,7.73455399,189.18,189.04,29.31910273]
[1735207677003,9.33835399,189.18,189.11,7.73455399]
[1735207678400,2.6458,189.17,189.12,2.6465]
[1735207678800,2.6458,189.17,189.13,7.73455399]
[1735207679706,1.6038,189.18,189.13,7.73455399]
[1735207679902,3.26,189.17,189.13,7.73455399]
[1735207681407,3.26,189.17,189.14,2.6462]
[1735207682014,3.26,189.17,189.15,7.73455399]
[1735207684911,3.26,189.17,189.14,2.6462]
[1735207685117,3.26,189.17,189.05,7.32977568]
[1735207685411,3.26,189.17,189.1,7.73455399]
[1735207685618,10.99455399,189.17,189.1,7.73455399]
[1735207686610,2.6461,189.15,189.11,2.6466]
[1735207687007,2.6459,189.16,189.11,2.6466]
[1735207687317,2.6459,189.16,189.12,2.6465]
[1735207687611,10.99455399,189.17,189.1,7.73455399]
[1735207688410,2.6461,189.15,189.11,2.6466]
[1735207688615,7.73455399,189.15,189.03,1.5445]
[1735207688814,7.73455399,189.15,189.08,7.73455399]
[1735207690416,2.6464,189.13,189.08,10.38155399]
[1735207690615,3.26,189.12,189.08,10.38155399]
[1735207691616,5.9066,189.12,189.08,2.647]
[1735207691817,3.26,189.12,189.07,2.6472]
[1735207692619,3.26,189.12,189.09,2.6469]
[1735207697214,3.26,189.12,189.11,2.6466]
[1735207698920,3.26,189.12,189.08,7.73455399]
[1735207699110,3.26,189.12,189.1,2.6467]
[1735207700117,3.26,189.12,189.08,7.73455399]
[1735207700416,3.26,189.12,189.11,2.6466]
[1735207702614,3.26,189.12,189.1,2.6467]
[1735207703011,3.26,189.12,189.03,1.5445]
[1735207703213,3.26,189.12,189.08,2.6469]
[1735207703618,3.26,189.12,189.06,7.73455399]
[1735207703815,3.26,189.12,189.08,7.73455399]
[1735207705121,3.26,189.12,189.09,2.6469]
[1735207705521,3.26,189.12,189.08,7.73455399]
[1735207705721,3.26,189.12,189.03,1.5445]
[1735207705923,3.26,189.12,189.08,7.73455399]
[1735207706619,1.6485,189.16,189.08,7.73455399]
[1735207706919,71.11965026,189.22,189.12,7.73455399]
[1735207706920,7.73455399,189.19,189.12,7.73455399]
[1735207707124,3.26,189.17,189.12,7.73455399]
[1735207708521,3.26,189.17,189.16,2.6459]
[1735207714731,9.29605399,189.22,189.14,7.73455399]
[1735207714925,1.5615,189.22,189.14,7.73455399]
[1735207715131,3.26,189.21,189.16,7.73455399]
[1735207715728,37.41503506,189.27,189.2,7.73455399]
[1735207715929,9.35717912,189.27,189.2,7.73455399]
[1735207716129,3.26,189.26,189.25,2.6447]
[1735207716632,3.26,189.26,189.22,7.73455399]
[1735207716926,3.26,189.26,189.25,2.6447]
[1735207719728,1.6486,189.29,189.22,7.73455399]
[1735207719933,3.26,189.28,189.27,2.6443]
[1735207722754,62.71455399,189.32,189.29,2.6441]
[1735207722951,0.88323134,189.31,189.28,7.73455399]
[1735207723251,3.26,189.33,189.3,7.73455399]
[1735207724453,3.26,189.33,189.31,2.6438]
[1735207726057,10.99455399,189.33,189.28,2.6441]
[1735207726254,10.99455399,189.33,189.19,1.5442]
[1735207726255,7.73455399,189.31,189.19,1.5442]
[1735207726454,7.73455399,189.31,189.24,7.73455399]
[1735207726650,2.6441,189.3,189.25,2.6447]
[1735207728150,2.6441,189.3,189.24,7.73455399]
[1735207728455,2.6441,189.3,189.26,2.6445]
[1735207728648,2.6441,189.3,189.24,7.73455399]
[1735207728854,2.6443,189.28,189.24,2.6448]
[1735207729156,3.26,189.27,189.22,7.73455399]
[1735207730056,3.26,189.27,189.24,2.6448]
[1735207731557,3.26,189.27,189.23,2.6449]
[1735207732258,3.26,189.27,189.22,2.6451]
[1735207732259,10.99455399,189.27,189.22,2.6451]
[1735207732954,13.63895399,189.27,189.22,2.6451]
[1735207733661,3.26,189.27,189.12,3.26]
[1735207734160,3.26,189.27,189.21,7.73455399]
[1735207734453,3.26,189.27,189.23,2.6448]
[1735207735057,3.26,189.27,189.25,2.6447]
[1735207735462,3.26,189.27,189.23,7.73455399]
[1735207735662,3.26,189.27,189.26,2.6445]
[1735207736160,1.644,189.35,189.25,7.73455399]
[1735207736456,10.37815399,189.33,189.28,2.6442]
[1735207736652,3.26,189.32,189.27,7.73455399]
[1735207736852,3.26,189.32,189.3,2.644]
[1735207739961,3.26,189.32,189.31,2.6438]
[1735207742260,3.26,189.32,189.08,157.46412529]
[1735207742470,7.73455399,189.27,189.19,7.73455399]
[1735207742662,3.26,189.26,189.19,7.73455399]
[1735207743261,5.9046,189.26,189.22,2.6451]
[1735207750364,2.6444,189.27,189.23,2.6449]
[1735207750572,3.26,189.26,189.21,7.73455399]
[1735207750774,3.26,189.25,189.21,7.73455399]
[1735207752269,10.99455399,189.25,189.22,2.6451]
[1735207753277,3.26,189.25,189.13,1.6398]
[1735207753463,3.26,189.25,189.23,7.73455399]
[1735207753666,2.6439,189.31,189.27,2.6444]
[1735207753964,3.26,189.31,189.29,7.73455399]
[1735207754374,3.26,189.31,189.3,2.6439]
[1735207754972,3.26,189.33,189.3,2.6439]
[1735207755680,2.6437,189.32,189.27,2.6443]
[1735207756276,2.6437,189.32,189.27,10.37885399]
[1735207756774,5.9036,189.33,189.28,2.6442]
[1735207758072,5.9036,189.33,189.29,2.6441]
[1735207761178,3.26,189.33,189.29,2.6441]
[1735207762769,3.26,189.33,189.27,7.73455399]
[1735207762975,3.26,189.32,189.27,7.73455399]
[1735207763279,3.26,189.33,189.32,2.6436]
[1735207763874,11.02745399,189.36,189.32,2.6436]
[1735207764079,3.26,189.35,189.33,2.6436]
[1735207764780,3.26,189.35,189.34,2.6434]
[1735207765179,3.26,189.35,189.31,7.73455399]
[1735207765379,3.26,189.35,189.31,2.6438]
[1735207766182,3.26,189.35,189.29,7.73455399]
[1735207766377,3.26,189.35,189.32,2.6437]
[1735207766576,2.6429,189.39,189.31,7.73455399]
[1735207766779,11.878138,189.38,189.31,7.73455399]
[1735207766981,7.73455399,189.38,189.34,2.6433]
[1735207767280,3.26,189.37,189.34,2.6433]
[1735207768880,13.63765399,189.37,189.27,2.6444]
[1735207769182,13.63765399,189.37,189.29,7.73455399]
[1735207769183,10.99455399,189.37,189.29,7.73455399]
[1735207769587,10.99455399,189.37,189.23,46.30827053]
[1735207769781,10.99455399,189.37,189.29,7.73455399]
[1735207770487,2.6433,189.36,189.32,2.6437]
[1735207771080,3.26,189.35,189.32,2.6437]
[1735207777694,3.26,189.35,189.29,7.73455399]
[1735207777993,3.26,189.35,189.33,2.6436]
[1735207778388,3.26,189.35,189.29,7.73455399]
[1735207778592,3.26,189.35,189.34,2.6434]
[1735207783292,3.24,189.38,189.33,7.73455399]
[1735207783497,3.24,189.38,189.35,7.73455399]
[1735207784397,3.24,189.38,189.37,2.643]
[1735207785599,1.60412804,189.41,189.37,7.73455399]
[1735207785800,55.02,189.44,189.39,7.73455399]
[1735207786023,3.24,189.43,189.39,7.73455399]
[1735207786199,1.6707,189.45,189.39,7.73455399]
[1735207786507,3.24,189.43,189.39,7.73455399]
[1735207786797,7.73455399,189.46,189.32,3.24]
[1735207786798,3.24,189.44,189.41,7.73455399]
[1735207787204,3.24,189.44,189.42,2.6423]
[1735207787400,3.24,189.44,189.33,3.213]
[1735207787702,10.97455399,189.44,189.36,7.73455399]
[1735207788300,0.88344154,189.43,189.36,7.73455399]
[1735207788697,0.88344154,189.43,189.38,2.6428]
[1735207788998,0.88344154,189.43,189.36,7.73455399]
[1735207788999,10.97455399,189.44,189.37,7.73455399]
[1735207789203,0.88343261,189.43,189.37,7.73455399]
[1735207789503,3.52573261,189.43,189.38,2.6429]
[1735207789805,2.6423,189.43,189.38,2.6429]
[1735207793508,2.6423,189.43,189.39,2.6426]
[1735207794303,10.97455399,189.44,189.28,5.2886]
[1735207794503,1.514,189.42,189.35,7.73455399]
[1735207795401,4.1564,189.42,189.38,2.6429]
[1735207796807,4.1564,189.42,189.39,2.6427]
[1735207797309,1.514,189.42,189.39,2.6427]
[1735207801909,2.6422,189.43,189.39,2.6427]
[1735207802714,10.15866478,189.46,189.41,7.73455399]
[1735207802915,1.5653,189.47,189.41,7.73455399]
[1735207803115,3.24,189.45,189.42,2.6422]
[1735207803508,3.24,189.45,189.41,7.73455399]
[1735207803908,3.24,189.45,189.42,2.6422]
[1735207804315,58.60695763,189.52,189.46,2.6417]
[1735207804517,4.12390801,189.51,189.46,10.37625399]
[1735207804814,3.24,189.51,189.46,10.37625399]
[1735207805215,3.24,189.51,189.37,3.24]
[1735207805513,7.73455399,189.47,189.41,7.73455399]
[1735207805713,4.1241103,189.46,189.41,7.73455399]
[1735207805920,2.6419,189.45,189.39,7.73455399]
[1735207806421,2.6422,189.43,189.38,2.6428]
[1735207806617,7.73455399,189.45,189.38,10.37735399]
[1735207806817,0.88420614,189.44,189.38,10.37735399]
[1735207807619,2.6424,189.42,189.38,7.73455399]
[1735207807919,3.24,189.41,189.38,7.73455399]
[1735207808308,3.24,189.41,189.36,7.73455399]
[1735207808524,5.8825,189.41,189.36,10.37765399]
[1735207808921,2.6426,189.4,189.36,7.73455399]
[1735207810015,3.24,189.41,189.37,2.643]
[1735207810420,3.24,189.41,189.39,2.6426]
[1735207810620,3.24,189.42,189.4,7.73455399]
[1735207811426,3.24,189.42,189.4,10.37705399]
[1735207813328,3.24,189.42,189.32,6.4432]
[1735207813329,5.8823,189.42,189.38,10.37735399]
[1735207813530,3.24,189.42,189.38,10.37735399]
[1735207813928,3.24,189.42,189.39,2.6427]
[1735207816430,3.24,189.42,189.38,10.37745399]
[1735207817231,3.24,189.42,189.39,2.6427]
[1735207818430,3.24,189.42,189.38,7.73455399]
[1735207819432,3.24,189.42,189.39,2.6427]
[1735207826133,3.24,189.42,189.4,2.6426]
[1735207828831,3.24,189.42,189.38,7.73455399]
[1735207830434,3.24,189.42,189.4,2.6425]
[1735207848547,3.24,189.42,189.41,2.6425]
[1735207850341,3.24,189.42,189.32,1.6272]
[1735207850546,3.24,189.42,189.3,1.636]
[1735207850746,10.97455399,189.42,189.36,7.73455399]
[1735207851047,2.6428,189.4,189.35,10.37775399]
[1735207852150,7.73455399,189.4,189.34,2.6434]
[1735207852342,7.73455399,189.4,189.33,7.73455399]
[1735207852549,7.73455399,189.38,189.33,7.73455399]
[1735207852749,5.8832,189.37,189.33,7.73455399]
[1735207854348,5.8832,189.37,189.29,48.58761537]
[1735207854650,5.8832,189.37,189.33,2.6436]
[1735207855151,3.24,189.37,189.33,2.6436]
[1735207855856,3.24,189.37,189.36,10.37765399]
[1735207856651,3.24,189.37,189.36,2.6431]
[1735207864754,4.8277,189.43,189.36,7.73455399]
[1735207864964,3.24,189.42,189.4,7.73455399]
[1735207865660,3.24,189.42,189.41,2.6425]
[1735207866054,3.24,189.42,189.41,10.37705399]
[1735207867251,9.4318828,189.46,189.42,2.6423]
[1735207867456,4.1226214,189.45,189.42,2.6423]
[1735207867756,3.24,189.45,189.42,2.6423]
[1735207867956,3.24,189.44,189.42,2.6423]
[1735207868556,3.24,189.44,189.43,2.6422]
[1735207870861,1.69732881,189.46,189.41,7.73455399]
[1735207871061,3.24,189.45,189.44,2.642]
[1735207875469,3.24,189.45,189.32,3.24]
[1735207875667,7.73455399,189.44,189.41,2.6424]
[1735207876070,7.73455399,189.44,189.37,7.73455399]
[1735207876269,7.73455399,189.44,189.42,2.6423]
[1735207876576,5.882,189.45,189.42,2.6423]
[1735207881077,5.882,189.45,189.39,7.73455399]
[1735207881278,2.6422,189.43,189.31,1.6479]
[1735207881487,7.73455399,189.42,189.36,7.73455399]
[1735207882580,10.37705399,189.42,189.38,2.6429]
[1735207883478,10.37705399,189.42,189.36,7.73455399]
[1735207883479,7.73455399,189.42,189.36,7.73455399]
[1735207883877,2.6423,189.43,189.36,7.73455399]
[1735207884073,2.6423,189.43,189.38,2.6428]
[1735207884484,3.24,189.45,189.38,7.73455399]
[1735207885179,3.24,189.45,189.4,2.6426]
[1735207885381,3.24,189.45,189.38,7.73455399]
[1735207886173,3.24,189.45,189.41,2.6424]
[1735207888079,7.73455399,189.44,189.29,48.58761537]
[1735207888283,7.73455399,189.42,189.35,7.73455399]
[1735207888678,10.37705399,189.42,189.37,2.643]
[1735207888982,10.37705399,189.42,189.35,7.73455399]
[1735207889183,0.88283988,189.41,189.38,2.6429]
[1735207889491,10.37705399,189.42,189.38,2.6429]
[1735207889492,3.24,189.4,189.38,2.6429]
[1735207895890,3.24,189.4,189.37,7.73455399]
[1735207896187,3.24,189.4,189.39,2.6428]
[1735207896981,7.73455399,189.45,189.39,2.6428]
[1735207897178,4.12264294,189.44,189.39,2.6428]
[1735207897382,3.24,189.44,189.39,2.6428]
[1735207897582,2.6422,189.43,189.39,2.6428]
[1735207900290,2.6425,189.42,189.37,10.37745399]
[1735207900584,3.24,189.41,189.37,10.37745399]
[1735207901694,3.24,189.41,189.37,7.73455399]
[1735207901886,3.24,189.41,189.38,2.6429]
[1735207903588,3.24,189.41,189.39,2.6427]
[1735207912802,5.8825,189.41,189.37,2.643]
[1735207913400,5.8825,189.41,189.38,2.6429]
[1735207913601,3.24,189.41,189.38,2.6429]
[1735207914701,3.24,189.41,189.36,7.73455399]
[1735207914905,3.24,189.42,189.4,7.73455399]
[1735207915096,3.24,189.43,189.4,7.73455399]
[1735207915395,3.24,189.44,189.4,7.73455399]
[1735207915796,3.24,189.44,189.41,2.6425]
[1735207920407,10.97455399,189.44,189.29,51.78651537]
[1735207920603,3.24,189.44,189.39,7.73455399]
[1735207922703,13.32975259,189.48,189.3,3.24]
[1735207922704,10.18855259,189.48,189.43,7.73455399]
[1735207922898,0.88277421,189.47,189.45,7.73455399]
[1735207923098,3.24,189.48,189.45,7.73455399]
[1735207923498,3.24,189.48,189.46,2.6418]
[1735207923804,58.60695763,189.5,189.36,3.2765]
[1735207923998,2.6418,189.46,189.42,10.37675399]
[1735207924200,7.73455399,189.47,189.4,7.73455399]
[1735207925203,0.88273047,189.46,189.4,7.73455399]
[1735207925604,7.73455399,189.47,189.4,7.73455399]
[1735207925812,0.88273613,189.46,189.41,2.6425]
[1735207926502,7.73455399,189.45,189.38,7.73455399]
[1735207926707,4.12258746,189.44,189.36,7.73455399]
[1735207926906,3.24,189.44,189.36,7.73455399]
[1735207927108,7.73455399,189.43,189.36,7.73455399]
[1735207927909,3.24,189.44,189.38,7.73455399]
[1735207929510,2.6424,189.42,189.38,10.37745399]
[1735207931503,2.6424,189.42,189.38,2.6429]
[1735207932309,3.24,189.41,189.38,2.6429]
[1735207936917,3.24,189.41,189.38,10.37745399]
[1735207937919,3.24,189.41,189.38,2.6429]
[1735207938219,3.24,189.41,189.39,2.6428]
[1735207938413,10.19064025,189.46,189.4,7.73455399]
[1735207938617,3.24,189.45,189.42,7.73455399]
[1735207938810,3.24,189.45,189.43,2.6421]
[1735207939415,3.24,189.45,189.42,10.37685399]
[1735207939613,3.24,189.45,189.42,2.6423]
[1735207939920,10.97455399,189.45,189.38,7.73455399]
[1735207940116,10.97455399,189.45,189.3,10.61137568]
[1735207940320,10.97455399,189.45,189.37,7.73455399]
[1735207940516,0.88239466,189.44,189.37,7.73455399]
[1735207940717,2.6422,189.43,189.39,2.6428]
[1735207941018,10.97455399,189.45,189.39,7.73455399]
[1735207941519,13.61665399,189.45,189.41,2.6425]
[1735207942821,2.6421,189.44,189.4,2.6426]
[1735207943319,17.92402579,189.47,189.39,7.73455399]
[1735207943618,17.92402579,189.47,189.3,3.2816]
[1735207943619,5.8819,189.46,189.41,7.73455399]
[1735207944125,5.8819,189.46,189.42,2.6423]
[1735207945116,3.0588,189.48,189.43,7.73455399]
[1735207945322,3.24,189.48,189.45,7.73455399]
[1735207946220,3.24,189.48,189.47,2.6417]
[1735207954325,1.5879,189.5,189.47,10.37625399]
[1735207954531,3.24,189.49,189.47,10.37625399]
[1735207962735,3.24,189.49,189.48,2.6415]
[1735207965035,3.22,189.5,189.49,2.6414]
[1735207965241,1.68986486,189.52,189.49,10.37595399]
[1735207965437,3.22,189.51,189.49,10.37595399]
[1735207970953,54.96,189.53,189.52,2.641]
[1735207971151,3.22,189.53,189.52,10.37555399]
[1735207975045,9.33515399,189.59,189.52,10.37555399]
[1735207975251,2.6404,189.56,189.52,10.37555399]
[1735207981559,7.73455399,189.57,189.4,3.1805]
[1735207981767,7.73455399,189.55,189.49,7.73455399]
[1735207981967,7.73455399,189.55,189.4,3.1805]
[1735207982171,7.73455399,189.49,189.43,7.73455399]
[1735207982464,3.22,189.48,189.43,7.73455399]
[1735207983456,5.8616,189.48,189.43,10.37675399]
[1735207984161,3.22,189.48,189.45,2.6419]
[1735207984367,3.22,189.48,189.45,7.73455399]
[1735207985068,3.22,189.48,189.46,2.6417]
[1735207989174,13.59615399,189.48,189.42,7.73455399]
[1735207989672,5.8616,189.48,189.42,7.73455399]
[1735207989869,3.22,189.48,189.42,7.73455399]
[1735207990171,3.22,189.48,189.44,2.642]
[1735207993169,3.22,189.48,189.46,2.6417]
[1735207996870,3.22,189.48,189.44,7.73455399]
[1735207997066,3.22,189.48,189.45,2.6419]
[1735207997477,5.8616,189.48,189.44,7.73455399]
[1735207998576,5.8616,189.48,189.44,10.37665399]
[1735207998778,3.22,189.48,189.44,7.73455399]
[1735207999076,3.22,189.47,189.44,7.73455399]
[1735208000473,3.22,189.47,189.46,2.6417]
[1735208000779,3.22,189.47,189.44,7.73455399]
[1735208002080,3.22,189.47,189.42,7.73455399]
[1735208002475,5.8617,189.47,189.43,2.6422]
[1735208004079,3.22,189.47,189.46,10.37625399]
[1735208005991,1.6254,189.53,189.49,2.6412]
[1735208006181,3.22,189.52,189.49,2.6412]
[1735208006382,3.22,189.52,189.46,7.73455399]
[1735208006580,2.6411,189.51,189.47,2.6416]
[1735208006979,7.73455399,189.51,189.38,3.1353]
[1735208007175,7.73455399,189.49,189.43,7.73455399]
[1735208007580,7.73455399,189.51,189.43,7.73455399]
[1735208008088,2.6412,189.5,189.41,2.6424]
[1735208008276,2.6412,189.5,189.44,7.73455399]
[1735208008876,2.6412,189.5,189.45,2.6418]
[1735208009081,10.37565399,189.51,189.44,7.73455399]
[1735208010181,7.73455399,189.51,189.44,7.73455399]
[1735208010484,7.73455399,189.51,189.38,3.1353]
[1735208010687,7.73455399,189.49,189.42,7.73455399]
[1735208010984,3.0944,189.48,189.41,7.73455399]
[1735208011188,10.95455399,189.47,189.33,32.46040273]
[1735208011385,10.95455399,189.47,189.39,7.73455399]
[1735208011581,12.59715399,189.47,189.39,7.73455399]
[1735208012109,12.59715399,189.47,189.33,3.1413]
[1735208012284,2.642,189.45,189.4,10.37715399]
[1735208012882,12.59715399,189.47,189.42,7.73455399]
[1735208012883,4.8626,189.47,189.42,7.73455399]
[1735208014593,7.5043,189.47,189.43,2.6422]
[1735208019987,2.6418,189.46,189.43,2.6422]
[1735208020700,2.6418,189.46,189.42,10.37685399]
[1735208020894,2.6414,189.49,189.44,7.73455399]
[1735208021092,15.86,189.62,189.33,3.1413]
[1735208021093,3.22,189.48,189.46,7.73455399]
[1735208021498,3.22,189.48,189.46,10.37625399]
[1735208022301,3.22,189.48,189.44,2.642]
[1735208022600,3.22,189.48,189.44,7.73455399]
[1735208023101,3.22,189.48,189.45,2.6419]
[1735208023295,3.22,189.48,189.36,56.22714362]
[1735208023494,3.22,189.48,189.44,7.73455399]
[1735208023694,2.6418,189.47,189.44,7.73455399]
[1735208028601,3.22,189.48,189.36,53.00714362]
[1735208028803,2.642,189.45,189.41,10.37695399]
[1735208031407,3.22,189.48,189.45,2.6419]
[1735208031600,3.22,189.48,189.45,7.73455399]
[1735208031901,3.22,189.48,189.36,53.00714362]
[1735208032203,3.22,189.48,189.45,7.73455399]
[1735208032600,10.20512693,189.53,189.47,7.73455399]
[1735208033002,3.22,189.52,189.39,1.593]
[1735208033199,2.6412,189.51,189.46,10.37625399]
[1735208033604,2.6412,189.51,189.46,7.73455399]
[1735208033899,5.861,189.52,189.46,7.73455399]
[1735208034299,5.861,189.52,189.48,2.6414]
[1735208035903,2.641,189.52,189.48,2.6414]
[1735208036106,3.22,189.51,189.48,2.6414]
[1735208036895,4.624,189.54,189.48,7.73455399]
[1735208037097,3.22,189.53,189.5,7.73455399]
[1735208037309,3.22,189.53,189.4,1.6509]
[1735208037606,2.641,189.52,189.48,2.6414]
[1735208038808,5.8609,189.53,189.49,2.6414]
[1735208041606,3.22,189.53,189.49,2.6414]
[1735208042411,3.22,189.53,189.5,2.6412]
[1735208042905,1.84663995,189.57,189.52,7.73455399]
[1735208043107,3.22,189.56,189.54,2.6407]
[1735208045114,3.22,189.55,189.54,2.6407]
[1735208047210,10.95455399,189.55,189.49,7.73455399]
[1735208047520,10.37575399,189.51,189.4,3.3083]
[1735208047726,3.22,189.5,189.44,7.73455399]
[1735208048009,3.22,189.5,189.48,7.73455399]
[1735208048222,7.73455399,189.54,189.5,2.6412]
[1735208048407,3.22,189.53,189.48,7.73455399]
[1735208048607,3.22,189.53,189.49,2.6413]
[1735208049111,3.22,189.53,189.5,2.6412]
[1735208049711,2.641,189.52,189.47,2.6417]
[1735208049910,2.641,189.52,189.47,10.37625399]
[1735208050214,3.22,189.53,189.47,7.73455399]
[1735208050920,3.22,189.53,189.49,7.73455399]
[1735208051413,3.22,189.53,189.4,3.3083]
[1735208051610,3.22,189.53,189.48,7.73455399]
[1735208052322,3.22,189.53,189.49,2.6413]
[1735208053523,3.22,189.53,189.5,2.6412]
[1735208058728,3.22,189.53,189.51,2.6411]
[1735208059629,3.22,189.53,189.49,7.73455399]
[1735208059929,3.22,189.55,189.51,7.73455399]
[1735208060127,3.22,189.55,189.54,7.73455399]
[1735208061326,3.22,189.57,189.54,7.73455399]
[1735208061529,58.60695763,189.64,189.56,7.73455399]
[1735208061730,4.10331882,189.63,189.56,7.73455399]
[1735208062027,58.60695763,189.64,189.58,7.73455399]
[1735208062227,3.22,189.63,189.6,7.73455399]
[1735208063231,3.22,189.63,189.61,2.6397]
[1735208063430,3.22,189.63,189.62,7.73455399]
[1735208064523,4.7772,189.72,189.62,7.73455399]
[1735208064524,63.38415763,189.72,189.62,7.73455399]
[1735208064733,4.10307787,189.71,189.64,7.73455399]
[1735208064932,4.10290142,189.7,189.64,7.73455399]
[1735208065134,0.88292794,189.69,189.64,7.73455399]
[1735208065430,61.83085763,189.72,189.67,7.73455399]
[1735208065631,3.22,189.71,189.69,7.73455399]
[1735208065839,58.60695763,189.72,189.69,7.73455399]
[1735208065840,61.82695763,189.72,189.69,7.73455399]
[1735208066139,66.34151162,189.76,189.61,3.22]
[1735208066434,5.8578,189.75,189.69,10.37305399]
[1735208067140,5.8578,189.75,189.71,7.73455399]
[1735208067734,2.6379,189.74,189.71,7.73455399]
[1735208068636,2.6379,189.74,189.61,3.22]
[1735208068829,10.95455399,189.75,189.61,3.22]
[1735208069028,0.88272485,189.74,189.69,7.73455399]
[1735208069438,2.6383,189.72,189.69,7.73455399]
[1735208069635,10.95455399,189.75,189.69,7.73455399]
[1735208069835,0.88274149,189.74,189.69,7.73455399]
[1735208070535,2.6382,189.72,189.69,7.73455399]
[1735208071135,2.6383,189.71,189.66,2.639]
[1735208071338,3.22,189.7,189.67,7.73455399]
[1735208072541,3.22,189.7,189.67,10.37345399]
[1735208075237,3.22,189.7,189.69,10.37315399]
[1735208079845,3.22,189.73,189.71,2.6383]
[1735208080147,3.22,189.73,189.68,7.73455399]
[1735208080841,3.22,189.73,189.69,2.6385]
[1735208081844,3.22,189.73,189.7,2.6384]
[1735208086443,3.22,189.73,189.71,2.6383]
[1735208086746,2.6378,189.75,189.71,2.6383]
[1735208087146,2.6378,189.75,189.57,3.1085]
[1735208087147,3.24,189.76,189.73,7.73455399]
[1735208087752,3.24,189.76,189.74,2.6379]
[1735208089049,3.24,189.78,189.75,2.6377]
[1735208092743,57.5571,189.8,189.76,2.6375]
[1735208092945,57.5571,189.8,189.75,7.73455399]
[1735208092946,3.24,189.8,189.75,7.73455399]
[1735208093146,3.24,189.8,189.77,7.73455399]
[1735208094350,3.24,189.8,189.78,2.6373]
[1735208094851,3.24,189.81,189.78,2.6373]
[1735208095053,1.5517,189.9,189.79,7.73455399]
[1735208095246,10.37105399,189.85,189.8,2.637]
[1735208095543,3.24,189.84,189.8,2.637]
[1735208096349,3.24,189.84,189.81,7.73455399]
[1735208097852,3.24,189.84,189.8,2.637]
[1735208098054,3.24,189.84,189.8,10.37155399]
[1735208098954,2.6369,189.81,189.67,29.31910273]
[1735208099153,2.6369,189.81,189.78,7.73455399]